bitfinex/quotes_ETHUSD_20250620
["timestamp","ask_amount","ask_price","bid_price","bid_amount"]
[1750458808245,17.81950554,2408.0,2407.9,4.97779638]
[1750458808433,17.20748783,2408.0,2407.9,4.97779638]
[1750458808636,17.8194641,2408.0,2407.9,4.97779638]
[1750458808932,17.81952847,2408.0,2407.9,4.97779638]
[1750458809138,17.81954588,2408.0,2407.9,4.97779638]
[1750458809341,17.81954579,2408.0,2407.9,4.97779638]
[1750458809646,17.81954552,2408.0,2407.9,4.97779638]
[1750458810151,17.81954586,2408.0,2407.9,4.97779638]
[1750458810534,17.20751547,2408.0,2407.9,4.97779638]
[1750458810850,17.81949574,2408.0,2407.9,4.97779638]
[1750458811041,17.81949647,2408.0,2407.9,4.97779638]
[1750458811244,17.43697851,2408.0,2407.9,4.15299638]
[1750458811450,17.81949471,2408.0,2407.9,4.15299638]
[1750458811949,17.81949462,2408.0,2407.9,4.15299638]
[1750458812152,17.81952006,2408.0,2407.9,4.15299638]
[1750458812358,17.81952138,2408.0,2407.9,4.15299638]
[1750458812855,17.43697989,2408.0,2407.9,4.15299638]
[1750458813228,17.59005228,2408.0,2407.9,4.21399638]
[1750458813628,17.20751702,2408.0,2407.9,4.21399638]
[1750458813926,10.76505117,2408.0,2407.9,5.12886172]
[1750458814132,1.783,2408.6,2408.5,4.1519618]
[1750458814360,1.783,2409.0,2408.9,4.15127236]
[1750458814566,9.37227385,2409.0,2408.9,4.15127236]
[1750458814729,19.60183702,2409.0,2408.9,4.15127236]
[1750458814928,19.6018399,2409.0,2408.9,4.15127236]
[1750458815355,12.54830439,2409.0,2408.9,4.15127236]
[1750458815562,9.60184816,2409.0,2408.9,4.15127236]
[1750458815765,9.60185008,2409.0,2408.9,4.15127236]
[1750458815962,2.39519689,2409.0,2408.9,4.15127236]
[1750458816261,9.37138212,2409.0,2408.9,4.21227236]
[1750458816465,1.783,2409.2,2409.1,4.15092773]
[1750458816764,12.54648114,2409.2,2409.1,4.15092773]
[1750458816971,19.37048114,2409.2,2409.1,4.15092773]
[1750458817172,19.2177411,2409.2,2409.1,4.15092773]
[1750458817469,0.76348876,2409.2,2409.1,4.15092773]
[1750458817640,0.76348876,2409.2,2409.1,5.40235377]
[1750458817843,2.54648876,2409.2,2409.1,5.46335377]
[1750458818051,8.607,2409.2,2409.1,5.46335377]
[1750458818243,9.974,2409.3,2409.2,4.91145543]
[1750458818448,16.798,2409.3,2409.2,4.91145543]
[1750458818656,27.62247224,2409.3,2409.2,4.15075543]
[1750458819374,20.41668612,2409.3,2409.2,4.15075543]
[1750458819574,27.56056789,2409.3,2409.2,4.15075543]
[1750458820056,27.56055311,2409.3,2409.2,4.15075543]
[1750458820356,26.797,2409.3,2409.2,4.15075543]
[1750458820551,26.797,2409.3,2409.2,5.05699173]
[1750458821447,10.0,2409.3,2409.2,5.94109173]
[1750458823293,1.783,2409.8,2409.7,4.14989417]
[1750458823447,8.605,2409.8,2409.7,4.14989417]
[1750458824491,18.6659,2409.8,2409.7,4.14989417]
[1750458825483,11.783,2409.8,2409.7,4.14989417]
[1750458825695,18.604,2409.8,2409.7,4.14989417]
[1750458826282,18.604,2409.8,2409.7,4.98598602]
[1750458826480,18.604,2409.8,2409.7,5.04698602]
[1750458826916,18.604,2409.8,2409.7,4.98598602]
[1750458827431,2.29435282,2410.2,2410.1,4.14920542]
[1750458827616,19.32739272,2410.2,2410.1,4.14920542]
[1750458827817,28.55589272,2410.2,2410.1,4.14920542]
[1750458828340,28.49499272,2410.2,2410.1,4.14920542]
[1750458829050,28.55589272,2410.2,2410.1,4.14920542]
[1750458829322,20.89635282,2410.2,2410.1,4.14920542]
[1750458829823,20.89535282,2410.2,2410.1,4.14920542]
[1750458830816,14.07535282,2410.2,2410.1,4.14920542]
[1750458831001,20.89535282,2410.2,2410.1,4.14920542]
[1750458831600,9.971,2410.4,2410.3,4.14886113]
[1750458831919,28.572,2410.4,2410.3,4.14886113]
[1750458832120,18.601,2410.4,2410.3,4.14886113]
[1750458832302,11.781,2410.4,2410.3,4.90226113]
[1750458832502,1.781,2410.4,2410.3,4.14886113]
[1750458832704,11.781,2410.4,2410.3,4.14886113]
[1750458833712,11.781,2410.4,2410.3,5.55995245]
[1750458833930,11.781,2410.4,2410.3,5.62095245]
[1750458834622,11.781,2410.4,2410.3,5.55995245]
[1750458835898,11.781,2410.4,2410.3,5.62095245]
[1750458836227,1.781,2410.4,2410.3,5.62095245]
[1750458836433,1.781,2410.4,2410.3,6.41583706]
[1750458836927,0.8267,2411.1,2410.3,6.41583706]
[1750458836928,1.781,2410.8,2410.7,0.7534]
[1750458837095,8.599,2410.8,2410.7,4.90157272]
[1750458837698,1.781,2410.8,2410.7,4.14817272]
[1750458837905,1.8419,2410.8,2410.7,4.14817272]
[1750458838101,11.8419,2410.8,2410.7,4.14817272]
[1750458838831,11.781,2410.8,2410.7,4.14817272]
[1750458839008,11.781,2410.8,2410.7,5.05316447]
[1750458840523,11.781,2410.8,2410.7,5.11416447]
[1750458841848,10.0,2411.2,2411.0,4.14765657]
[1750458842053,9.589215,2411.1,2411.0,4.14765657]
[1750458842215,9.36047265,2411.1,2411.0,4.14765657]
[1750458842424,10.0,2411.0,2410.9,4.14782861]
[1750458842767,10.76244985,2411.0,2410.9,4.14782861]
[1750458842920,10.99115322,2411.0,2410.9,4.9774072]
[1750458843121,7.80814802,2411.0,2410.9,4.9774072]
[1750458843321,7.80815016,2411.0,2410.9,4.9774072]
[1750458843636,7.80815036,2411.0,2410.9,4.9774072]
[1750458844072,10.0,2410.9,2410.7,4.14805764]
[1750458844240,0.0595,2410.7,2410.5,4.14842757]
[1750458844579,10.0595,2410.5,2410.4,4.14856522]
[1750458844779,10.82182375,2410.5,2410.4,4.14856522]
[1750458844984,10.38116201,2410.5,2410.4,4.14856522]
[1750458845146,10.76232502,2410.5,2410.4,4.14856522]
[1750458845339,10.76232224,2410.5,2410.4,4.14856522]
[1750458845674,10.76232017,2410.5,2410.4,4.14856522]
[1750458845875,10.82232123,2410.5,2410.4,4.14856522]
[1750458846170,11.84251932,2410.5,2410.4,4.14856522]
[1750458846377,11.84300901,2410.5,2410.3,4.14875028]
[1750458846576,25.46753621,2410.4,2410.3,4.14875028]
[1750458846784,25.46753559,2410.4,2410.3,4.14875028]
[1750458846936,25.46753295,2410.4,2410.3,4.14875028]
[1750458847584,25.4675589,2410.4,2410.3,4.14875028]
[1750458847737,25.46756048,2410.4,2410.3,4.14875028]
[1750458848051,25.46756235,2410.4,2410.3,4.14875028]
[1750458848250,25.08585943,2410.4,2410.3,4.14875028]
[1750458848455,25.46755889,2410.4,2410.3,4.14875028]
[1750458848654,20.45805461,2410.4,2410.3,4.14875028]
[1750458848889,20.45804775,2410.4,2410.2,4.14889511]
[1750458849042,10.99240785,2410.3,2410.2,4.14889511]
[1750458849241,10.99240333,2410.3,2410.2,4.14889511]
[1750458849776,10.99240797,2410.3,2410.2,4.14889511]
[1750458849959,10.9924113,2410.3,2410.2,4.14889511]
[1750458850273,10.99276404,2410.3,2410.2,4.14889511]
[1750458850471,0.99276404,2410.3,2410.2,4.14889511]
[1750458850674,0.99300754,2410.3,2410.2,4.14889511]
[1750458850879,0.99306145,2410.3,2410.2,4.14889511]
[1750458851241,0.99305461,2410.3,2410.2,4.14889511]
[1750458851569,0.99347358,2410.3,2410.2,4.14889511]
[1750458852073,0.99347148,2410.3,2410.2,4.14889511]
[1750458852376,0.99347892,2410.3,2410.2,4.14889511]
[1750458852536,0.993476,2410.3,2410.2,4.14889511]
[1750458852742,0.99346355,2410.3,2410.2,4.14889511]
[1750458853084,0.76420492,2410.3,2410.2,5.03810019]
[1750458853390,0.764211,2410.3,2410.2,5.03810019]
[1750458853681,0.76421968,2410.3,2410.2,5.03810019]
[1750458854182,0.76421968,2410.3,2410.2,4.14889511]
[1750458854183,7.58121968,2410.3,2410.2,4.14889511]
[1750458854385,7.4284588,2410.3,2410.2,4.14889511]
[1750458854545,7.8107888,2410.3,2410.2,4.14889511]
[1750458854745,7.81097992,2410.3,2410.2,4.14889511]
[1750458855290,7.81099482,2410.3,2410.2,4.14889511]
[1750458855689,6.817,2410.3,2410.2,4.14889511]
[1750458855896,7.81101091,2410.3,2410.2,4.14889511]
[1750458856405,7.81101357,2410.3,2410.2,4.14889511]
[1750458856580,7.81100715,2410.3,2410.2,4.14889511]
[1750458856784,7.81099731,2410.3,2410.2,4.14889511]
[1750458857079,10.76461434,2410.3,2410.2,4.20829511]
[1750458857456,10.38230495,2410.3,2410.2,4.20829511]
[1750458857657,10.76476678,2410.3,2410.2,4.20829511]
[1750458858062,10.76482451,2410.3,2410.2,4.20829511]
[1750458858573,10.76483371,2410.3,2410.2,5.04404069]
[1750458858791,10.76519429,2410.3,2410.2,5.85974069]
[1750458858959,10.76518511,2410.3,2410.2,5.85974069]
[1750458859387,10.76530975,2410.3,2410.2,5.85974069]
[1750458859552,0.76530922,2410.3,2410.2,5.85974069]
[1750458859958,0.76540889,2410.3,2410.2,5.85974069]
[1750458860873,0.76561866,2410.3,2410.2,5.85974069]
[1750458861202,16.8765,2410.7,2410.6,4.14834481]
[1750458861370,17.87196936,2410.7,2410.6,4.14834481]
[1750458861888,17.87207561,2410.7,2410.6,4.14834481]
[1750458862085,17.4892118,2410.7,2410.6,4.14834481]
[1750458862257,17.4892118,2410.7,2410.4,4.14856519]
[1750458862258,0.0595,2410.6,2410.4,4.14856519]
[1750458862463,19.58249517,2410.7,2410.5,4.14850517]
[1750458862662,1.05538027,2410.6,2410.5,4.14850517]
[1750458862874,1.05538551,2410.6,2410.5,4.14850517]
[1750458863059,1.05538455,2410.6,2410.5,4.14850517]
[1750458863259,19.65238989,2410.6,2410.5,4.14850517]
[1750458863461,19.20985177,2410.6,2410.5,4.14850517]
[1750458863661,19.59283681,2410.6,2410.5,4.14850517]
[1750458863918,19.65225389,2410.6,2410.5,4.14850517]
[1750458864707,19.65224814,2410.6,2410.5,4.14850517]
[1750458864866,19.65224814,2410.6,2410.4,4.14856519]
[1750458864867,19.26926583,2410.6,2410.4,4.14860348]
[1750458865066,8.59437112,2410.5,2410.4,4.14860348]
[1750458865601,8.59421959,2410.5,2410.4,4.14860348]
[1750458865809,8.5942213,2410.5,2410.4,4.14860348]
[1750458865977,8.59422035,2410.5,2410.4,4.14860348]
[1750458866382,8.21130482,2410.5,2410.4,4.14860348]
[1750458866582,8.5941849,2410.5,2410.4,4.14860348]
[1750458866897,8.59405594,2410.5,2410.4,4.14860348]
[1750458867077,10.0,2410.4,2410.0,4.14929454]
[1750458867409,10.0595,2410.2,2410.1,4.14919445]
[1750458867563,11.05484492,2410.2,2410.1,4.14919445]
[1750458867764,11.0549118,2410.2,2410.1,4.14919445]
[1750458868202,10.82519105,2410.2,2410.1,4.14919445]
[1750458868495,18.42383095,2410.2,2410.1,4.14919445]
[1750458868802,18.65356683,2410.2,2409.7,0.7783]
[1750458869002,0.67205898,2410.1,2410.0,4.14930382]
[1750458869296,7.87093307,2410.1,2410.0,4.14930382]
[1750458869672,7.4878519,2410.1,2410.0,4.14930382]
[1750458869876,7.64093988,2410.1,2410.0,4.14930382]
[1750458870098,7.87057998,2410.1,2410.0,4.14930382]
[1750458870301,7.87082434,2410.1,2410.0,4.14930382]
[1750458870696,7.87093949,2410.1,2410.0,4.14930382]
[1750458870897,7.87114185,2410.1,2410.0,4.14930382]
[1750458871098,7.48820269,2410.1,2410.0,4.14930382]
[1750458871416,7.87114877,2410.1,2410.0,4.14930382]
[1750458871606,7.87114831,2410.1,2410.0,4.14930382]
[1750458871805,7.87114831,2410.1,2409.9,4.14954522]
[1750458871806,18.66644831,2410.1,2409.9,4.14942036]
[1750458871983,8.59426833,2410.0,2409.9,4.14942036]
[1750458872168,8.59425643,2410.0,2409.9,4.14942036]
[1750458872702,8.59514828,2410.0,2409.9,4.14942036]
[1750458873103,8.21187582,2410.0,2409.9,4.14942036]
[1750458873401,8.59514811,2410.0,2409.9,4.14942036]
[1750458873704,8.59474333,2410.0,2409.9,4.14942036]
[1750458874204,8.59474861,2410.0,2409.9,4.14942036]
[1750458874701,8.59463054,2410.0,2409.9,4.14942036]
[1750458874901,8.59463046,2410.0,2409.9,4.14942036]
[1750458875071,8.59463792,2410.0,2409.9,4.14942036]
[1750458875504,8.59463957,2410.0,2409.9,4.14942036]
[1750458875682,8.59464796,2410.0,2409.9,4.20722036]
[1750458875881,8.59465008,2410.0,2409.9,4.20722036]
[1750458876088,8.59464143,2410.0,2409.9,4.20722036]
[1750458876390,8.59465238,2410.0,2409.9,4.20722036]
[1750458876568,8.59462386,2410.0,2409.9,4.20722036]
[1750458876771,8.59460822,2410.0,2409.9,4.20722036]
[1750458876969,0.99596832,2410.0,2409.9,4.20722036]
[1750458877200,0.9960001,2410.0,2409.9,4.20722036]
[1750458877592,0.99596833,2410.0,2409.9,4.20722036]
[1750458877898,0.99596833,2410.0,2409.9,4.14942036]
[1750458878109,0.99592293,2410.0,2409.9,4.14942036]
[1750458878402,10.76610899,2410.0,2409.9,4.20722036]
[1750458878608,10.76607454,2410.0,2409.9,4.20722036]
[1750458878913,10.76607886,2410.0,2409.9,4.20722036]
[1750458879090,10.76616792,2410.0,2409.9,4.20722036]
[1750458879414,0.38308162,2410.0,2409.9,5.90170432]
[1750458879704,18.596,2410.5,2410.4,4.14868901]
[1750458879874,19.59217099,2410.5,2410.4,4.14868901]
[1750458880077,12.77617099,2410.5,2410.4,4.14868901]
[1750458880277,19.59217099,2410.5,2410.4,4.14868901]
[1750458880495,19.59209945,2410.5,2410.4,4.14868901]
[1750458880701,12.77609945,2410.5,2410.4,4.14868901]
[1750458881079,12.77610046,2410.5,2410.4,4.14868901]
[1750458881712,12.77601844,2410.5,2410.4,4.14868901]
[1750458882013,12.77601728,2410.5,2410.4,4.14868901]
[1750458882383,12.77603905,2410.5,2410.4,4.14868901]
[1750458882793,12.77603905,2410.5,2410.3,4.14878248]
[1750458882794,10.06,2410.4,2410.3,4.14878248]
[1750458882994,8.27160122,2410.4,2410.3,4.14878248]
[1750458883188,8.65469233,2410.4,2410.3,4.14878248]
[1750458883386,19.20468279,2410.4,2410.3,4.14878248]
[1750458883584,19.20461235,2410.4,2410.3,4.14878248]
[1750458883825,10.0,2410.3,2410.1,4.14910159]
[1750458883997,19.14461235,2410.4,2410.0,4.14937759]
[1750458883998,10.0,2410.1,2410.0,4.14937759]
[1750458884323,17.58210672,2410.1,2410.0,4.20717759]
[1750458884521,10.76604568,2410.1,2410.0,4.20717759]
[1750458884701,10.38299697,2410.1,2410.0,4.20717759]
[1750458885020,10.0,2410.1,2410.0,4.20717759]
[1750458885225,10.38299109,2410.1,2410.0,5.12458033]
[1750458885420,10.76598178,2410.1,2410.0,5.12458033]
[1750458885623,10.76605094,2410.1,2410.0,5.12458033]
[1750458885804,10.3830602,2410.1,2410.0,5.12458033]
[1750458886119,10.38306744,2410.1,2410.0,5.12458033]
[1750458886441,10.38306787,2410.1,2410.0,5.12458033]
[1750458886623,10.38306786,2410.1,2410.0,5.12458033]
[1750458886926,10.76613651,2410.1,2410.0,5.12458033]
[1750458887128,10.76613182,2410.1,2410.0,5.12458033]
[1750458887327,10.0,2410.1,2410.0,5.12458033]
[1750458887695,10.38306643,2410.1,2410.0,5.12458033]
[1750458887895,10.76613314,2410.1,2410.0,5.12458033]
[1750458888125,10.76613264,2410.1,2410.0,5.12458033]
[1750458888592,10.38306643,2410.1,2410.0,5.12458033]
[1750458889432,10.76618737,2410.1,2410.0,5.12458033]
[1750458889736,10.76624232,2410.1,2410.0,5.12458033]
[1750458890035,10.76624265,2410.1,2410.0,5.12458033]
[1750458890338,10.38312148,2410.1,2410.0,5.12458033]
[1750458890499,10.76624355,2410.1,2410.0,5.12458033]
[1750458890828,10.38312089,2410.1,2410.0,5.12458033]
[1750458891019,10.76624325,2410.1,2410.0,5.12458033]
[1750458891219,10.76606942,2410.1,2410.0,5.12458033]
[1750458891430,10.76596688,2410.1,2410.0,5.12458033]
[1750458892034,10.76593965,2410.1,2410.0,5.12458033]
[1750458892339,10.76600156,2410.1,2410.0,5.12458033]
[1750458892632,10.0,2410.1,2410.0,5.12458033]
[1750458892837,10.7661295,2410.1,2410.0,5.12458033]
[1750458893243,10.0,2410.1,2410.0,5.12458033]
[1750458893403,10.76641703,2410.1,2410.0,5.12458033]
[1750458893603,10.76644274,2410.1,2410.0,5.12458033]
[1750458893905,10.0,2410.1,2410.0,5.12458033]
[1750458894106,10.76653392,2410.1,2410.0,5.12458033]
[1750458894336,10.76653304,2410.1,2410.0,5.12458033]
[1750458894532,10.76662725,2410.1,2410.0,5.12458033]
[1750458895226,10.76662725,2410.1,2410.0,4.20717759]
[1750458895427,10.76674078,2410.1,2410.0,4.20717759]
[1750458895626,10.38347262,2410.1,2410.0,4.20717759]
[1750458895836,10.38349342,2410.1,2410.0,4.20717759]
[1750458896156,10.76698671,2410.1,2410.0,4.20717759]
[1750458896320,10.0,2410.1,2410.0,4.20717759]
[1750458896645,10.76698613,2410.1,2410.0,4.14937759]
[1750458896803,10.76708627,2410.1,2410.0,4.14937759]
[1750458897237,10.0,2410.1,2410.0,4.14937759]
[1750458898107,10.76707518,2410.1,2410.0,4.14937759]
[1750458898339,10.76703868,2410.1,2410.0,4.14937759]
[1750458899237,10.7670342,2410.1,2410.0,4.14937759]
[1750458899434,10.38353759,2410.1,2410.0,4.14937759]
[1750458899636,10.38353169,2410.1,2410.0,4.14937759]
[1750458899934,10.76706335,2410.1,2410.0,4.14937759]
[1750458900152,10.76706335,2410.1,2410.0,5.12458033]
[1750458901250,0.76706335,2410.1,2410.0,5.12458033]
[1750458901546,1.78,2410.9,2410.8,4.14800066]
[1750458901718,19.36129666,2410.9,2410.8,4.14800066]
[1750458901925,19.59149528,2410.9,2410.8,4.14800066]
[1750458902105,0.0594,2410.8,2410.7,4.1480352]
[1750458902446,0.0594,2410.6,2410.5,4.14837881]
[1750458902657,17.87098497,2410.6,2410.5,4.14837881]
[1750458902940,17.87101191,2410.6,2410.5,4.14837881]
[1750458903142,10.99765607,2410.6,2410.5,4.14837881]
[1750458903442,10.76746848,2410.6,2410.5,5.86017998]
[1750458903747,10.76778925,2410.6,2410.5,5.86017998]
[1750458904244,10.76779354,2410.6,2410.5,5.86017998]
[1750458904811,10.76785472,2410.6,2410.5,5.86017998]
[1750458905227,10.7680576,2410.6,2410.5,5.03047881]
[1750458905420,10.61444948,2410.6,2410.5,4.14837881]
[1750458905654,10.99848705,2410.6,2410.5,4.14837881]
[1750458905855,10.99851612,2410.6,2410.5,4.14837881]
[1750458906158,24.85507747,2410.6,2410.5,4.14837881]
[1750458906461,25.23881737,2410.6,2410.5,4.14837881]
[1750458907054,24.8547798,2410.6,2410.5,4.14837881]
[1750458907357,25.46859072,2410.6,2410.5,4.14837881]
[1750458908121,25.46840281,2410.6,2410.5,4.14837881]
[1750458908318,24.85464102,2410.6,2410.5,4.14837881]
[1750458908547,25.08478693,2410.6,2410.5,4.14837881]
[1750458908746,25.46835273,2410.6,2410.5,4.14837881]
[1750458909059,25.02535161,2410.6,2410.5,4.14837881]
[1750458909259,25.40888893,2410.6,2410.5,4.14837881]
[1750458909558,19.58924623,2410.6,2410.5,4.14837881]
[1750458909863,19.58922942,2410.6,2410.5,4.20687881]
[1750458910059,19.58921728,2410.6,2410.5,4.20687881]
[1750458910233,19.58921917,2410.6,2410.5,4.20687881]
[1750458910439,19.35909407,2410.6,2410.5,5.12360998]
[1750458910637,19.35910694,2410.6,2410.5,5.12360998]
[1750458911043,19.35915636,2410.6,2410.5,5.12360998]
[1750458911254,19.35918717,2410.6,2410.5,5.12360998]
[1750458911450,18.97561606,2410.6,2410.5,5.12360998]
[1750458911654,19.35943269,2410.6,2410.5,5.12360998]
[1750458912032,12.54636188,2410.6,2410.5,5.12360998]
[1750458912245,12.5462356,2410.6,2410.5,5.12360998]
[1750458912464,12.54623547,2410.6,2410.5,5.12360998]
[1750458913826,12.16261765,2410.6,2410.5,5.12360998]
[1750458914031,12.54581363,2410.6,2410.5,5.12360998]
[1750458914244,12.54580738,2410.6,2410.5,5.12360998]
[1750458914987,12.16239976,2410.6,2410.5,5.12360998]
[1750458915590,12.16234452,2410.6,2410.5,5.12360998]
[1750458915886,12.16234452,2410.6,2410.5,4.14837881]
[1750458916235,12.16232921,2410.6,2410.5,4.14837881]
[1750458916837,12.16231669,2410.6,2410.5,4.14837881]
[1750458917736,12.16232052,2410.6,2410.5,4.14837881]
[1750458918571,12.16230418,2410.6,2410.5,4.14837881]
[1750458918766,12.16230507,2410.6,2410.5,4.14837881]
[1750458918937,12.16230507,2410.6,2410.5,4.20687881]
[1750458919783,0.38330507,2410.6,2410.5,5.80762998]
[1750458919939,10.0594,2411.2,2411.1,4.14748455]
[1750458920283,25.46671158,2411.2,2411.1,4.14748455]
[1750458920487,1.3682,2411.1,2410.5,4.91356807]
[1750458920693,7.86807094,2411.0,2410.9,4.14772256]
[1750458920868,7.8680825,2411.0,2410.9,4.14772256]
[1750458921393,7.8683328,2411.0,2410.9,4.14772256]
[1750458921593,7.63823531,2411.0,2410.9,4.14772256]
[1750458921754,15.46694781,2411.0,2410.9,4.14772256]
[1750458922455,15.46695597,2411.0,2410.9,4.14772256]
[1750458922684,15.08354188,2411.0,2410.9,4.14772256]
[1750458922990,30.96874318,2411.0,2409.9,0.0585]
[1750458923167,0.8182,2410.8,2410.7,4.14810533]
[1750458923363,0.55,2410.6,2410.0,0.8154]
[1750458923569,10.0,2410.3,2410.2,4.14903327]
[1750458923775,6.812,2410.5,2410.4,4.14868901]
[1750458923999,17.57853466,2410.5,2410.4,4.14868901]
[1750458924286,17.80849487,2410.5,2410.4,4.14868901]
[1750458924590,17.57854083,2410.5,2410.4,4.14868901]
[1750458924755,20.40470918,2410.5,2410.4,4.14868901]
[1750458925082,20.02144268,2410.5,2410.4,4.14868901]
[1750458925384,20.40471413,2410.5,2410.4,4.14868901]
[1750458925585,20.02148315,2410.5,2410.4,4.14868901]
[1750458925786,20.40506934,2410.5,2410.4,4.14868901]
[1750458925974,20.02165621,2410.5,2410.4,4.14868901]
[1750458926175,19.58705733,2410.5,2410.4,4.14868901]
[1750458927198,19.58738673,2410.5,2410.4,4.14868901]
[1750458927361,19.58738645,2410.5,2410.4,4.14868901]
[1750458927885,19.58735975,2410.5,2410.4,4.14868901]
[1750458928196,19.58765936,2410.5,2410.4,4.14868901]
[1750458928390,19.58764636,2410.5,2410.4,4.14868901]
[1750458928700,19.5876528,2410.5,2410.4,4.14868901]
[1750458928857,19.58765328,2410.5,2410.4,4.14868901]
[1750458929060,19.58769285,2410.5,2410.4,4.14868901]
[1750458929264,27.24573275,2410.5,2410.4,4.14868901]
[1750458929486,27.18633275,2410.5,2410.4,4.14868901]
[1750458929690,27.18686698,2410.5,2410.4,4.14868901]
[1750458929998,27.18723334,2410.5,2410.4,4.14868901]
[1750458930158,27.18722677,2410.5,2410.4,4.14868901]
[1750458930555,27.18721501,2410.5,2410.4,4.14868901]
[1750458930864,27.18721533,2410.5,2410.4,4.14868901]
[1750458931367,26.80311948,2410.5,2410.4,4.14868901]
[1750458931676,27.1871484,2410.5,2410.4,4.14868901]
[1750458931876,26.1886399,2410.5,2410.4,4.14868901]
[1750458932703,27.18716147,2410.5,2410.4,4.14868901]
[1750458933463,26.80311629,2410.5,2410.4,4.14868901]
[1750458933680,27.18715154,2410.5,2410.4,4.14868901]
[1750458934007,26.80310729,2410.5,2410.4,4.14868901]
[1750458934199,27.24425265,2410.5,2410.4,4.14868901]
[1750458934363,27.24425696,2410.5,2410.4,4.14868901]
[1750458934563,27.24425691,2410.5,2410.4,4.14868901]
[1750458934887,26.1886399,2410.5,2410.4,4.14868901]
[1750458935190,27.18714605,2410.5,2410.4,4.14868901]
[1750458935604,26.80310331,2410.5,2410.4,4.14868901]
[1750458935780,27.18714564,2410.5,2410.4,4.14868901]
[1750458936409,27.1870866,2410.5,2410.4,4.14868901]
[1750458936769,27.18713751,2410.5,2410.4,4.14868901]
[1750458936970,19.58849761,2410.5,2410.4,4.14868901]
[1750458937171,19.20446668,2410.5,2410.4,4.14868901]
[1750458937509,19.58843049,2410.5,2410.4,4.14868901]
[1750458937671,19.58834026,2410.5,2410.4,4.14868901]
[1750458937872,19.58833666,2410.5,2410.4,4.14868901]
[1750458938074,19.20436409,2410.5,2410.4,4.14868901]
[1750458938408,19.35795703,2410.5,2410.4,4.14868901]
[1750458938600,19.58831532,2410.5,2410.4,4.14868901]
[1750458939108,19.2043339,2410.5,2410.4,4.14868901]
[1750458939274,19.58827634,2410.5,2410.4,4.14868901]
[1750458939471,18.82036526,2410.5,2410.4,4.14868901]
[1750458939672,19.58824751,2410.5,2410.4,4.14868901]
[1750458939875,19.58820682,2410.5,2410.4,4.14868901]
[1750458940099,19.58814155,2410.5,2410.4,4.14868901]
[1750458940295,18.97390056,2410.5,2410.4,4.14868901]
[1750458940515,19.5881489,2410.5,2410.4,4.14868901]
[1750458940815,19.58814662,2410.5,2410.4,4.14868901]
[1750458941009,19.58814344,2410.5,2410.4,4.14868901]
[1750458941210,19.58814341,2410.5,2410.4,4.14868901]
[1750458941526,19.58813909,2410.5,2410.4,4.14868901]
[1750458941716,19.58813924,2410.5,2410.4,4.14868901]
[1750458942583,19.58814217,2410.5,2410.4,4.14868901]
[1750458942810,19.58808985,2410.5,2410.4,4.14868901]
[1750458943010,19.58805142,2410.5,2410.4,4.14868901]
[1750458943179,19.58802066,2410.5,2410.4,4.14868901]
[1750458943919,19.35735988,2410.5,2410.4,4.14868901]
[1750458944220,19.20388081,2410.5,2410.4,4.14868901]
[1750458944517,19.58755262,2410.5,2410.4,4.14868901]
[1750458944818,19.5875686,2410.5,2410.4,4.14868901]
[1750458945022,10.0571,2410.4,2410.3,4.14879683]
[1750458945248,13.01339473,2410.4,2410.3,4.14879683]
[1750458945533,11.05463787,2410.4,2410.3,4.14879683]
[1750458945714,11.05463954,2410.4,2410.3,4.14879683]
[1750458946233,11.54753954,2410.4,2409.8,0.7768]
[1750458946442,17.86468949,2410.3,2410.2,4.14901026]
[1750458946590,25.46337957,2410.3,2410.2,4.14901026]
[1750458946791,25.46341654,2410.3,2410.2,4.14901026]
[1750458947187,25.46341732,2410.3,2410.2,4.14901026]
[1750458947387,25.46342992,2410.3,2410.2,4.14901026]
[1750458947587,25.46345537,2410.3,2410.2,4.14901026]
[1750458947894,25.46347212,2410.3,2410.2,4.14901026]
[1750458948414,25.07980664,2410.3,2410.2,4.14901026]
[1750458948627,25.4635994,2410.3,2410.2,4.14901026]
[1750458948924,25.46359877,2410.3,2410.2,4.14901026]
[1750458949117,28.32054221,2410.3,2410.2,4.14901026]
[1750458949320,25.4635772,2410.3,2410.2,4.14901026]
[1750458949525,25.46356635,2410.3,2410.2,4.14901026]
[1750458949709,24.8492258,2410.3,2410.2,4.14901026]
[1750458949915,25.4628199,2410.3,2410.2,4.14901026]
[1750458950428,25.46284918,2410.3,2410.2,4.14901026]
[1750458950725,25.46284585,2410.3,2410.2,4.14901026]
[1750458951226,25.07934399,2410.3,2410.2,4.14901026]
[1750458951426,25.46285048,2410.3,2410.2,4.14901026]
[1750458951631,25.46285478,2410.3,2410.2,4.14901026]
[1750458952087,25.46322648,2410.3,2410.2,4.14901026]
[1750458952523,25.46322668,2410.3,2410.2,4.14901026]
[1750458952717,25.4634537,2410.3,2410.2,4.14901026]
[1750458952892,25.463453,2410.3,2410.2,4.14901026]
[1750458953095,25.46317967,2410.3,2410.2,4.14901026]
[1750458953326,25.46318235,2410.3,2410.2,4.14901026]
[1750458953629,25.46307772,2410.3,2410.2,4.14901026]
[1750458953830,25.07948635,2410.3,2410.2,4.14901026]
[1750458954042,25.46309236,2410.3,2410.2,4.14901026]
[1750458954221,25.46311521,2410.3,2410.2,4.14901026]
[1750458954840,25.46311294,2410.3,2410.2,4.14901026]
[1750458955041,25.46311063,2410.3,2410.2,4.14901026]
[1750458955197,25.46311528,2410.3,2410.2,4.14901026]
[1750458955535,25.46308285,2410.3,2410.2,4.14901026]
[1750458955833,25.40614315,2410.3,2410.2,4.14901026]
[1750458956031,24.79229519,2410.3,2410.2,4.14901026]
[1750458956198,25.40614266,2410.3,2410.2,4.14901026]
[1750458956527,25.17594986,2410.3,2410.2,4.14901026]
[1750458956734,25.40614316,2410.3,2410.2,4.14901026]
[1750458956953,10.99750176,2410.3,2410.2,4.9104877]
[1750458957106,17.57645149,2410.3,2410.2,5.7143877]
[1750458957432,6.809,2410.4,2410.3,4.14886113]
[1750458957622,17.57646422,2410.4,2410.3,4.20666113]
[1750458957834,17.57646274,2410.4,2410.3,4.20666113]
[1750458958149,17.57646068,2410.4,2410.3,5.60790197]
[1750458958317,17.57645968,2410.4,2410.3,5.60790197]
[1750458958644,17.57645977,2410.4,2410.3,5.60790197]
[1750458958849,17.57646084,2410.4,2410.3,5.60790197]
[1750458959022,17.57644788,2410.4,2410.3,5.60790197]
[1750458959226,17.19271775,2410.4,2410.3,5.60790197]
[1750458959451,17.57646286,2410.4,2410.3,5.60790197]
[1750458960042,7.5767023,2410.4,2410.3,5.60790197]
[1750458960243,7.19271775,2410.4,2410.3,5.60790197]
[1750458960444,7.80714063,2410.4,2410.3,5.60790197]
[1750458960677,7.80744111,2410.4,2410.3,5.60790197]
[1750458960826,7.57703253,2410.4,2410.3,5.60790197]
[1750458961028,7.57705204,2410.4,2410.3,5.60790197]
[1750458961426,6.809,2410.4,2410.3,5.60790197]
[1750458961626,7.57701166,2410.4,2410.3,5.60790197]